Cogmind - Beta 14 @@@ ROGUE MODE // 2024.10.05 @ 21:59:17 Player: Amuk Result: Destroyed by H-61 Shepherd with Heavy Assault Cannon Performance ------------- Evolutions (4) 2000 Regions Visited (8) 1600 Robots Destroyed (30) 150 Value Destroyed (1185) 1185 Prototype IDs (26) 520 Alien Tech Used (0) 0 Bonus (733) 733 TOTAL SCORE: 6188 Bonus ------- Entered DSFs 500 Aligned with FarCom 300 Friendly Fire -67 Cogmind --------- Core Integrity 0/850 Matter 243/300 Energy 100/100 System Corruption 1% Temperature Cool (0) Movement Core (50) Location -6/Factory Parts ------- > --- POWER (3) -------- (None) > --- PROPULSION (4) --- (None) > --- UTILITY (4) ------ (None) > --- WEAPON (4) ------- (None) > --- INVENTORY (5) ---- Improved Medium Treads Improved Hover Unit Small Battery (100) Grenade Launcher Peak State ------------ > --- POWER ------------ Light Deuterium Engine Reinforced Deuterium Engine > --- PROPULSION ------- Improved Medium Treads Improved Medium Treads Improved Medium Treads Improved Medium Treads > --- UTILITY ---------- Energy Well Improved Trap Scanner Visual Processing Unit Shield Generator > --- WEAPON ----------- Assault Rifle Gauss Rifle AWS/Gauss > --- INVENTORY -------- Improved Medium Treads Improved Hover Unit Small Battery Heavy EM Pulse Gun Grenade Launcher [Rating: 63] Favorites ----------- Power Reinforced Deuterium Engine Engine Reinforced Deuterium Engine Power Core Light Nuclear Core Propulsion Improved Medium Treads Treads Improved Medium Treads Leg Titanium Leg Wheel Wheel Flight Unit Flight Unit Utility Visual Processing Unit Device Shield Generator Storage Small Battery Processor Visual Processing Unit Weapon AWS/Gauss Energy Gun Small Laser Energy Cannon Proton Cannon Ballistic Gun AWS/Gauss Launcher Grenade Launcher Special Weapon Mining Laser Build | -11 -10 -10 -10 -9 -8 -7 -7 -6 ------- Run | Yrd Mat Min Exi Min Mat Fac DSF Fac Slots Evolved 8 | . . . . . 4 2 . 2 Power 2 | . . . . . . 2 . . Propulsion 2 | . . . . . 2 . . . Utility 2 | . . . . . . . . 2 Weapon 2 | . . . . . 2 . . . Parts Attached 57 | 7 10 7 2 . 10 . 9 12 Power 7 | 2 1 1 . . 1 . 1 1 Engine 6 | 2 1 1 . . . . 1 1 Core 1 | . . . . . 1 . . . Reactor . | . . . . . . . . . Propulsion 22 | 3 3 3 1 . 1 . 6 5 Treads 11 | . . . . . . . 6 5 Leg 3 | 2 . . . . 1 . . . Wheel 1 | 1 . . . . . . . . Hover . | . . . . . . . . . Flight 7 | . 3 3 1 . . . . . Utility 10 | . 3 . . . 4 . . 3 Device 5 | . 2 . . . 1 . . 2 Storage 4 | . 1 . . . 2 . . 1 Processor 1 | . . . . . 1 . . . Hackware . | . . . . . . . . . Protection . | . . . . . . . . . Artifact . | . . . . . . . . . Weapon 18 | 2 3 3 1 . 4 . 2 3 Energy Gun 4 | 2 . . . . 1 . . 1 Energy Cannon 1 | . . . . . . . . 1 Ballistic Gun 6 | . . . 1 . 2 . 2 1 Ballistic Cannon . | . . . . . . . . . Launcher 5 | . 1 3 . . 1 . . . Special Weapon 2 | . 2 . . . . . . . Impact Weapon . | . . . . . . . . . Slashing Weapon . | . . . . . . . . . Piercing Weapon . | . . . . . . . . . Special Melee Weapon . | . . . . . . . . . Unidentified Prototypes 1 | . . . . . 1 . . . Parts Lost 11 | . 1 3 . . 1 . 1 5 Power 4 | . 1 2 . . . . 1 . Propulsion 1 | . . 1 . . . . . . Utility 2 | . . . . . . . . 2 Weapon 4 | . . . . . 1 . . 3 Highest Loss Streak 3 | . 1 1 . . 1 . 1 3 To Critical Strikes . | . . . . . . . . . Average Slot Usage (%) 50 | . 78 56 14 14 35 38 52 66 Engine 5 | . 11 11 . . . . 3 8 Treads 8 | . . . . . . . 13 22 Leg 3 | . 9 . . . 8 7 2 . Flight 7 | . 18 18 14 14 . . . . Device 5 | . 7 9 . . 1 7 7 8 Storage 2 | . 2 2 . . 6 . . 2 Processor 2 | . . . . . 1 7 7 5 Energy Gun 3 | . 17 . . . 4 . . . Ballistic Gun 7 | . . . . . 7 7 15 15 Launcher 1 | . 3 7 . . . . . . Special Weapon 1 | . 6 5 . . . . . . Peak Build Rating 63 | 5 7 7 17 2 27 26 50 63 Average Rating 20 | 2 5 3 1 2 19 26 35 46 On Entrance 13 | . 5 7 1 2 2 26 26 50 Naked Turns 64 | . . . . . . . . 64 Heaviest Build 44 | 7 8 10 10 . 20 17 33 44 Greatest Support 120 | 10 20 8 4 4 17 17 120 120 Greatest Overweight (x) 3 | . . 2 3 . 1 . . . Average Overweight (x) . | . . . . . . . . . Largest Inventory Capacity 15 | 5 5 5 5 5 15 5 5 5 Average Capacity 5 | 5 5 5 5 5 5 5 5 5 Most Carried 5 | 5 5 5 5 5 5 5 5 5 Average Carried 4 | 1 4 4 4 5 2 5 4 4 Final Capacity 5 | 5 5 5 5 5 5 5 5 5 Final Carried 5 | 4 4 5 5 5 5 5 5 4 Class Distribution -------------------- 64% | Mutant 25% | Skirmisher 6% | Scavenger-Skirmisher 4% | Scavenger-Tank Dominant Class ---------------- Mutant | -10/Materials Mutant | -10/Mines Mutant | -10/Exiles Mutant | -9/Mines Mutant | -8/Materials Mutant | -7/Factory Skirmisher | -7/DSF Skirmisher | -6/Factory Resources | -11 -10 -10 -10 -9 -8 -7 -7 -6 ----------- Run | Yrd Mat Min Exi Min Mat Fac DSF Fac Matter Collected 968 | 270 40 41 . . 201 . 234 182 Remotely . | . . . . . . . . . Salvage Created 1349 | 32 74 22 . . 201 . 620 400 Parts 65 | 1 7 4 . . 8 . 26 19 Haulers Intercepted . | . . . . . . . . . Recyclers Shooed 1 | . . . . . . . . 1 Parts Field Recycled . | . . . . . . . . . Retrieved Matter . | . . . . . . . . . Parts Self-Destructed . | . . . . . . . . . Prevented . | . . . . . . . . . Kills | -11 -10 -10 -10 -9 -8 -7 -7 -6 ------- Run | Yrd Mat Min Exi Min Mat Fac DSF Fac Combat Hostiles Destroyed 27 | 1 4 3 . . 4 . 9 6 Guns 21 | 1 2 . . . 4 . 9 5 AOE 5 | . 2 3 . . . . . . Classes Destroyed 10 | 1 1 1 . . 2 . 3 2 Builder 1 | . . 1 . . . . . . Tunneler 1 | . . . . . . . . 1 Watcher 1 | . . . . . . . . 1 Swarmer 6 | . 3 1 . . . . . 2 Grunt 13 | 1 1 2 . . 2 . 6 1 Duelist 1 | . . . . . 1 . . . Sentry 4 | . . . . . . . 1 3 Specialist 1 | . . . . . . . 1 . Hunter 1 | . . . . . 1 . . . Heavy 1 | . . . . . . . 1 . Best Kill Streak 4 | 1 3 2 . . 3 . 4 4 Combat Bots Only 4 | 1 3 2 . . 3 . 4 3 Max Kills in Single Turn 2 | 1 2 2 . . 1 . 1 1 Gunslinging . | . . . . . . . . . Exploded 2 | . 2 1 . . . . . . Melee . | . . . . . . . . . Uniques/NPCs Destroyed . | . . . . . . . . . Combat | -11 -10 -10 -10 -9 -8 -7 -7 -6 -------- Run | Yrd Mat Min Exi Min Mat Fac DSF Fac Hostile Shots Fired 254 | 8 19 31 . 3 10 . 42 141 Missed 88 | 2 7 12 . 2 1 . 14 50 Damage Taken 2787 | 68 160 215 . 31 158 . 577 1578 Core 1224 | . 51 69 . 31 29 . 157 887 Absorbed by Shields 84 | . . . . . . . 42 42 Ignored by Resistances 70 | . . . . . . . . 70 Core Remaining (%) 77 | 100 . . . 39 94 . 77 . Volleys Fired 58 | 5 12 11 . . 11 . 3 16 Largest 3 | 2 2 2 . . 2 . 2 3 Hottest 200 | 80 80 200 . . 75 . 48 140 Shots Fired 186 | 10 23 13 . . 32 . 42 66 Gun 161 | 10 20 . . . 31 . 42 58 Cannon 8 | . . . . . . . . 8 Launcher 13 | . 3 9 . . 1 . . . Special 4 | . . 4 . . . . . . Kinetic 115 | . . . . . 20 . 42 53 Thermal 34 | 10 20 4 . . . . . . Explosive 13 | . 3 9 . . 1 . . . Electromagnetic 24 | . . . . . 11 . . 13 Robot Hit Streak 15 | 7 8 3 . . 5 . 15 11 Robot Miss Streak 4 | 1 2 4 . . 2 . 2 4 Penetration Max 1 | . . . . . . . 1 . Secondary Targets . | . . . . . . . . . Autonomous 81 | . . . . . 20 . 36 25 Shots Hit Robots 130 | 8 12 4 . . 20 . 37 49 Core Hits 59 | 2 5 5 . . 7 . 17 23 Critical Kills . | . . . . . . . . . Critical Parts Destroyed . | . . . . . . . . . Critical Strikes 1 | . . . . . 1 . . . Corrupt 1 | . . . . . 1 . . . Melee Attacks . | . . . . . . . . . Impact . | . . . . . . . . . Slashing . | . . . . . . . . . Piercing . | . . . . . . . . . Sneak Attacks . | . . . . . . . . . Combat Hostiles . | . . . . . . . . . Follow-up Attacks . | . . . . . . . . . Damage Inflicted 3617 | 90 190 424 . . 555 . 1055 1303 Guns 2926 | 90 142 . . . 555 . 1055 1084 Cannons 219 | . . . . . . . . 219 Explosions 448 | . 48 400 . . . . . . Melee . | . . . . . . . . . Ramming . | . . . . . . . . . Kinetic 2589 | . . . . . 476 . 1055 1058 Thermal 360 | 90 142 128 . . . . . . Explosive 344 | . 48 296 . . . . . . Electromagnetic 324 | . . . . . 79 . . 245 Impact . | . . . . . . . . . Slashing . | . . . . . . . . . Piercing . | . . . . . . . . . Highest Corruption 1 | . . . . . . . . 1 Average Corruption 1 | . . . . . . . . 1 Corruption Purged . | . . . . . . . . . Corruption Blocked . | . . . . . . . . . Effects 1 | . . . . . . . . 1 Alerts 1 | . . . . . . . . 1 Overload Shots . | . . . . . . . . . Overflow Damage 70 | . 1 42 . . . . . 27 Projectiles 27 | . . . . . . . . 27 Explosions 43 | . 1 42 . . . . . . Melee . | . . . . . . . . . Knockbacks . | . . . . . . . . . Impact . | . . . . . . . . . Kinetic . | . . . . . . . . . Secondary . | . . . . . . . . . Self-Inflicted Damage 62 | . 40 22 . . . . . . Shots 2 | . 1 1 . . . . . . Rammed . | . . . . . . . . . Targets Rammed . | . . . . . . . . . Kicked . | . . . . . . . . . Crushed . | . . . . . . . . . Highest Temperature 1086 | 101 10 142 . . . . 1086 412 Average Temperature 178 | 53 4 47 . . . . 392 132 Received Heat Transfer 718 | 36 54 78 . . 63 . 141 346 Effects 23 | . . . . . . . 22 1 Shutdowns 4 | . . . . . . . 4 . Energy Bleed 2 | . . . . . . . 1 1 Interference 3 | . . . . . . . 3 . Matter Decay 1 | . . . . . . . 1 . Short Circuit 1 | . . . . . . . 1 . Damage (major) 11 | . . . . . . . 11 . Damage (core) 1 | . . . . . . . 1 . Siege Activations . | . . . . . . . . . Robots Corrupted 1 | . . . . . . . . 1 Combat Hostiles 1 | . . . . . . . . 1 Parts Fried 1 | . . . . . . . . 1 Impact Corruptions . | . . . . . . . . . Robots Melted . | . . . . . . . . . Combat Hostiles . | . . . . . . . . . Parts Melted 1 | . 1 . . . . . . . Heat Transferred 675 | 200 325 150 . . . . . . Parts Sabotaged . | . . . . . . . . . Parts Stolen . | . . . . . . . . . Parts Stripped . | . . . . . . . . . Power Chain Reactions . | . . . . . . . . . Alert | -11 -10 -10 -10 -9 -8 -7 -7 -6 ------- Run | Yrd Mat Min Exi Min Mat Fac DSF Fac Peak Influence 370 | 20 147 202 . . 154 70 294 370 Initial 154 | . 13 57 . . . 65 49 154 Average 130 | 1 67 152 . . 92 67 210 192 Maximum Alert Level 1 | . . 1 . . . . 1 1 Low Security (%) 81 | 100 100 64 . 100 100 100 44 76 Level 1 18 | . . 35 . . . . 55 23 Level 2 . | . . . . . . . . . Level 3 . | . . . . . . . . . Level 4 . | . . . . . . . . . Level 5 . | . . . . . . . . . High Security . | . . . . . . . . . Max Security . | . . . . . . . . . Sterilizations 1 | . . . . . . . 1 . Squads Dispatched 10 | . 1 . . . . . 1 8 Investigation . | . . . . . . . . . Extermination 2 | . . . . . . . . 2 Reinforcement 4 | . 1 . . . . . 1 2 Assault . | . . . . . . . . . Garrison 4 | . . . . . . . . 4 Intercept . | . . . . . . . . . Searches Triggered . | . . . . . . . . . Construction Impeded . | . . . . . . . . . Haulers Reinforced . | . . . . . . . . . Active Scanning Responses . | . . . . . . . . . Cargo Convoy Interrupts . | . . . . . . . . . Stealth | -11 -10 -10 -10 -9 -8 -7 -7 -6 --------- Run | Yrd Mat Min Exi Min Mat Fac DSF Fac Distress Signals . | . . . . . . . . . Communications Jammed . | . . . . . . . . . Distress Signals . | . . . . . . . . . Times Spotted 48 | 1 6 7 . 2 5 . 9 18 Peak Tracking Total 7 | 1 3 3 . 3 3 . 4 7 Tactical Retreats 7 | . . 1 . 1 1 . 2 2 Traps | -11 -10 -10 -10 -9 -8 -7 -7 -6 ------- Run | Yrd Mat Min Exi Min Mat Fac DSF Fac Traps Triggered 3 | . . . . . . . 1 2 Indirectly . | . . . . . . . . . Trap Hack Attempts . | . . . . . . . . . Triggered . | . . . . . . . . . Disarmed . | . . . . . . . . . Reprogrammed . | . . . . . . . . . Reused . | . . . . . . . . . Traps Extracted . | . . . . . . . . . Installed . | . . . . . . . . . Triggered . | . . . . . . . . . Machines | -11 -10 -10 -10 -9 -8 -7 -7 -6 ---------- Run | Yrd Mat Min Exi Min Mat Fac DSF Fac Machines Disabled 4 | . . 1 . . . . . 3 Max in Single Turn 1 | . . 1 . . . . . 1 Machines Repaired . | . . . . . . . . . Machines Dismantled . | . . . . . . . . . Machines Sabotaged . | . . . . . . . . . Overloaded Fab Kills . | . . . . . . . . . Hacking | -11 -10 -10 -10 -9 -8 -7 -7 -6 --------- Run | Yrd Mat Min Exi Min Mat Fac DSF Fac Machines Accessed 8 | . 2 . 2 . 1 1 . 2 Terminals 6 | . 2 . . . 1 1 . 2 Fabricators . | . . . . . . . . . Repair Stations . | . . . . . . . . . Recycling Units . | . . . . . . . . . Scanalyzers . | . . . . . . . . . Garrison Access . | . . . . . . . . . Total Hacks 22 | . 4 . 12 . 2 2 . 2 Successful 18 | . 3 . 12 . 1 1 . 1 Failed 4 | . 1 . . . 1 1 . 1 Catastrophic . | . . . . . . . . . Database Lockouts . | . . . . . . . . . Manual 1 | . . . 1 . . . . . Terminals 10 | . 4 . . . 2 2 . 2 Fabricators . | . . . . . . . . . Repair Stations . | . . . . . . . . . Recycling Units . | . . . . . . . . . Scanalyzers . | . . . . . . . . . Garrison Access . | . . . . . . . . . Terminal Hacks 18 | . 3 . 12 . 1 1 . 1 Record 12 | . 1 . 11 . . . . . Prototype ID Bank 1 | . . . . . 1 . . . Open DSF 2 | . . . . . . 1 . 1 Terminal Index 1 | . 1 . . . . . . . Alert Level 1 | . 1 . . . . . . . Derelict Proto ID Bank 1 | . . . 1 . . . . . Fabricator Hacks . | . . . . . . . . . Repair Station Hacks . | . . . . . . . . . Recycling Unit Hacks . | . . . . . . . . . Scanalyzer . | . . . . . . . . . Garrison Access Hacks . | . . . . . . . . . Unauthorized Hacks . | . . . . . . . . . Terminals . | . . . . . . . . . Fabricators . | . . . . . . . . . Repair Stations . | . . . . . . . . . Recycling Units . | . . . . . . . . . Scanalyzers . | . . . . . . . . . Garrison Access . | . . . . . . . . . Data Cores Recovered . | . . . . . . . . . Used . | . . . . . . . . . Hacking Detections 4 | . 1 . . . 1 1 . 1 Full Trace Events . | . . . . . . . . . Feedback Events . | . . . . . . . . . Feedback Blocked . | . . . . . . . . . Robot Schematics Acquired . | . . . . . . . . . Robots Built . | . . . . . . . . . Authchips . | . . . . . . . . . Time . | . . . . . . . . . Total Robot Build Rating . | . . . . . . . . . Part Schematics Acquired . | . . . . . . . . . Parts Built . | . . . . . . . . . Authchips . | . . . . . . . . . Time . | . . . . . . . . . Total Part Build Rating . | . . . . . . . . . Parts Repaired . | . . . . . . . . . Time . | . . . . . . . . . Parts Recycled . | . . . . . . . . . Recycled Matter . | . . . . . . . . . Retrieved Matter . | . . . . . . . . . Retrieved Components . | . . . . . . . . . Parts Scanalyzed . | . . . . . . . . . Part Schematics Acquired . | . . . . . . . . . Parts Damaged . | . . . . . . . . . Bothacking | -11 -10 -10 -10 -9 -8 -7 -7 -6 ------------ Run | Yrd Mat Min Exi Min Mat Fac DSF Fac Used RIF Installer . | . . . . . . . . . Robots Hacked . | . . . . . . . . . Non-combat . | . . . . . . . . . Combat . | . . . . . . . . . Robot Hacks Applied . | . . . . . . . . . Relay Couplers Released . | . . . . . . . . . Fabnet Peak Effective % . | . . . . . . . . . Robots Rewired . | . . . . . . . . . Allies Hacked . | . . . . . . . . . Hacks Repelled . | . . . . . . . . . Allies | -11 -10 -10 -10 -9 -8 -7 -7 -6 -------- Run | Yrd Mat Min Exi Min Mat Fac DSF Fac Total Allies . | . . . . . . . . . Largest Group . | . . . . . . . . . Highest-Rated Group . | . . . . . . . . . Highest-Rated Ally . | . . . . . . . . . Total Orders . | . . . . . . . . . Ally Attacks . | . . . . . . . . . Total Damage . | . . . . . . . . . Kills . | . . . . . . . . . Allies Corrupted . | . . . . . . . . . Allies Melted . | . . . . . . . . . Intel | -11 -10 -10 -10 -9 -8 -7 -7 -6 ------- Run | Yrd Mat Min Exi Min Mat Fac DSF Fac Robot Analysis Total . | . . . . . . . . . Derelict Logs Recovered 1 | . . . . 1 . . . . Drone Launches . | . . . . . . . . . Drone Recoveries . | . . . . . . . . . Exploration | -11 -10 -10 -10 -9 -8 -7 -7 -6 ------------- Run | Yrd Mat Min Exi Min Mat Fac DSF Fac Turns Passed 2262 | 148 284 238 302 98 330 13 263 586 Spaces Moved 2592 | 85 359 360 738 234 235 11 165 405 Core 191 | 45 . 17 1 . . . . 128 Treads 365 | . . . . . . . 88 277 Legs 406 | 40 65 . . . 213 11 77 . Wheels . | . . . . . . . . . Hover . | . . . . . . . . . Flight 1630 | . 294 343 737 234 22 . . . Fastest Speed 37 | 50 37 37 40 40 40 130 130 50 Average Speed 72 | 82 52 47 40 40 121 130 146 125 Slowest Speed 200 | 120 120 150 200 40 200 130 160 160 Overloaded Moves . | . . . . . . . . . Propulsion Burnouts . | . . . . . . . . . Robots Hopped 10 | . 2 4 . 4 . . . . Cave-ins Triggered . | . . . . . . . . . Exploration Rate (%) 43 | 5 50 52 82 42 15 . 89 13 Regions Visited 8 Branch Regions 3 Pre-discovered Areas 1 | . . . 1 . . . . . Known Exits Taken 2 | . . . . . 1 1 . . Unknown Exits Taken 5 | 1 1 1 1 1 . . . . Scrap Searched 1 | . . 1 . . . . . . Spaces Dug 7 | . . . . . 7 . . . Terrain Destroyed 105 | . 18 57 . . 23 . 2 5 Melee . | . . . . . . . . . Projectile 25 | . . 2 . . 16 . 2 5 AOE 80 | . 18 55 . . 7 . . . Terrain Rammed . | . . . . . . . . . Walls Destroyed . | . . . . . . . . . Machines Disabled . | . . . . . . . . . Actions | -11 -10 -10 -10 -9 -8 -7 -7 -6 --------- Run | Yrd Mat Min Exi Min Mat Fac DSF Fac Total 2878 | 152 441 407 744 233 267 10 178 446 Wait 100 | 46 26 14 1 4 1 . 1 7 Move 2565 | 84 354 352 737 225 234 10 164 405 Hop 9 | . 2 3 . 4 . . . . Pick Up 37 | 9 19 5 . . 3 . . 1 Fast Attach 18 | . . . 1 . 5 . 5 7 Attach 32 | 6 9 6 1 . 6 . 2 2 Detach 18 | 1 2 8 2 . 5 . . . Swap 8 | 1 1 1 . . . . 2 3 Drop 33 | . 16 7 2 . 2 . 1 5 Fire 58 | 5 12 11 . . 11 . 3 16 Melee . | . . . . . . . . . Ram . | . . . . . . . . . Kick . | . . . . . . . . . Crush . | . . . . . . . . . Escape Stasis . | . . . . . . . . . Rewire . | . . . . . . . . . Trap . | . . . . . . . . . Miscellaneous . | . . . . . . . . . Route ------- -11/Scrapyard -10/Materials -10/Mines (discovered 2 exits: [*Mat] / *Exi) -10/Exiles -9/Mines -8/Materials (discovered 2 exits: *Fac x2) -7/Factory -7/DSF -6/Factory History --------- Turn | Location | Event 2 | -11/Scrapyard | Met Revision 17 116 | -11/Scrapyard | Discovered new exit (range 8) 149 | -11/Scrapyard | Entered Materials 309 | -10/Materials | Build established: Mutant 358 | -10/Materials | Discovered new exit (range 12) 433 | -10/Materials | Entered Mines 446 | -10/Mines | Discovered new exit (range 7) 668 | -10/Mines | Deemed a non-threat by the Exiles lab entrance 669 | -10/Mines | Discovered new exit (range 5) 671 | -10/Mines | Entered Exiles 681 | -10/Exiles | Discovered new exit (range 15) 688 | -10/Exiles | Met 8R-AWN 695 | -10/Exiles | Met EX-HEX 714 | -10/Exiles | Met EX-DEC 744 | -10/Exiles | Visited The Gauntlet 828 | -10/Exiles | Learned location of Zion (-7) 840 | -10/Exiles | Met EX-BIN 867 | -10/Exiles | Aligned with FarCom system 867 | -10/Exiles | Given EX-Vault access code 905 | -10/Exiles | Opened EX-Vault 911 | -10/Exiles | Found AWS/Gauss 927 | -10/Exiles | Warned to stay clear of 0b10 Research branches 973 | -10/Exiles | Left Exiles lab with AWS/Gauss 973 | -10/Exiles | Entered Mines 998 | -9/Mines | Assembled infested the area 1003 | -9/Mines | Assisted by a Guerilla fighting off Assembled 1050 | -9/Mines | Core integrity fell below 50% 1065 | -9/Mines | Discovered new exit (range 11) 1071 | -9/Mines | Entered Materials 1071 | -8/Materials | Evolved 4 slots: Propulsion x2, Weapon x2 1072 | -8/Materials | Identified exit to Factory 1376 | -8/Materials | Discovered exit to Factory (range 11) 1401 | -8/Materials | Entered Factory 1401 | -7/Factory | Evolved 2 slots: Power x2 1408 | -7/Factory | Identified exit to DSF 1414 | -7/Factory | Entered DSF 1442 | -7/DSF | Additional patrols routed to DSF 1476 | -7/DSF | Discovered new exit (range 18) 1559 | -7/DSF | Sterilization system engaged 1579 | -7/DSF | Ambient heat levels rising (+10) 1594 | -7/DSF | Ambient heat levels rising (+10) 1609 | -7/DSF | Ambient heat levels rising (+10) 1624 | -7/DSF | Ambient heat levels rising (+10) 1639 | -7/DSF | Ambient heat levels rising (+10) 1654 | -7/DSF | Ambient heat levels rising (+10) 1669 | -7/DSF | Ambient heat levels rising (+10) 1677 | -7/DSF | Entered Factory 1677 | -6/Factory | Evolved 2 slots: Utility x2 1822 | -6/Factory | Build established: Skirmisher 2009 | -6/Factory | AWS/Gauss suddenly broke down 2091 | -6/Factory | Lost 3 parts (1u2w) 2179 | -6/Factory | Garrison activated, responded to threat 2199 | -6/Factory | Released all parts (10) 2255 | -6/Factory | Core integrity fell below 50% 2257 | -6/Factory | Core integrity fell below 20% 2263 | -6/Factory | Destroyed by H-61 Shepherd with Heavy Assault Cannon Last Messages --------------- System corrupted: IFF burst signal emitted. U-05 Engineer lays Concrete. ALERT: Hostiles spotted, dispatching reinforcements to Terminal F019. Construction Platform disabled. Connecting with Fabricator... Knocked back. Acquired 5 matter. Slug penetrates Wall. Fusion Modulator explodes. Nuclear Reactor explodes. Fusion Modulator explodes. P-60 Hacker destroyed. Fusion Modulator explodes. The unstable cave ceiling collapses. Penetrated by Slug. Knocked back. Penetrated by Slug. [Achievement: First Step to Greatness] [Achievement: 5k Club] Map ----- +----------------------------------------------------+ | ?????????????????????????????????????????????????? | | ?????????????????????????????????????????????????? | | ?????????????????????????????????????????????????? | | ?????????????????????????????????????????????????? | | ?????????????????????????????????????????????????? | | ?????????????????????????? ??????????????????? | | ????????????????????????# #????????????????? | | ????????????????????????# #????????????????? | | ????????????????????????# #????????????????? | | ????????????????????????# #????????????????? | | ???????????????????????##k ##???????????????? | | ???????????????????????# #???????????????? | | ????????????????######## #???????????????? | | ??????????????? = #???????????????? | | ???????????????? #???????????????? | | ?????????????????? H #???????????????? | | ???????????????????? #???????????????? | | ?????????????????????? R ###?????????????? | | ??????????????????????## # ####??????????? | | ??????????????????????#; ; #??????????? | | ????????""#############;; ;;;;##?????????? | | ???????? ; ; #?????????? | | ?????????? ; ; #?????????? | | ??????????????" """" [ ;##?????????? | | ???? ????????" """" =% #?????????? | | "??? ???? ???" """" @ % #?????????? | | "??? ???? ??"" """" # #?????????? | | "??? ???? ??"" """" % #?????????? | | """" "??" """" """" ; #?????????? | | """" "??" """" """" ; #?????????? | | ;##?????????? | | """" """" """" """" = ;#??????????? | | """" """" """" """" # ;;;;;;#??????????? | | """" """" """" """" ####### ###??????????? | | """" """" """" """" #??????# ###????????????? | | """" """" """" """" #???????##??????????????? | | """" """" """" """" #???????????????????????? | | """ """" """" """" #???????????????????????? | | #???????????????????????? | | #???????????????????????? | | #???????????????????????? | | ###### """#### #???????????????????????? | | ?????#"" F""#??###########???????????????????????? | | ?????#""""""#????????????????????????????????????? | | ?????# """" #????????????????????????????????????? | | ?????########????????????????????????????????????? | | ?????????????????????????????????????????????????? | | ?????????????????????????????????????????????????? | | ?????????????????????????????????????????????????? | | ?????????????????????????????????????????????????? | +----------------------------------------------------+ Best States ------------- Heat Dissipation 37 Energy Generation 25 Energy Capacity 680 Matter Stores 300 Matter Capacity 300 Sight Range 18 Terrain Scan Density 10 ECM Strength 1 Resistance: KI 20 Evasion (%) 62 Recoil Reduction 4 Item Schematics ----------------- None Robot Schematics ------------------ None Fabricated ------------ Nothing Alien Tech Used ----------------- None Achievements -------------- 5k Club Crack Shot First Step to Greatness I Survived The Infestation Let's See Who's Tougher Librarian Made in Tau Ceti IV Please Form A Line Power Corrupts Risk Taker Serviceable Loadout Tourist Troublemaker Challenges ------------ None Game ------ Seed ExplosiveCryofiberDerivative Manual? 0 Play Time 01:23:09 Cumulative 1.3 hours Start 2024.10.05 @ 20:23:18 End 2024.10.05 @ 21:59:17 Sessions 1 Manual Loads 0 Difficulty Rogue Special Mode None Game No. 1 Rogue 1 Adventurer 0 Explorer 0 Win Type - Total 0 Types 0/0/0/0/0/0/0/0/0 Lore% 2 Gallery% 2 Achievement% 5 Wizard Run 0 Options --------- Layout 1 ASCII 0 Keyboard 0 Movement Numpad Keybinds 0 Fullscreen 2 Font 24/Terminus Map View 50x35 Zoom Use 0% Tactical HUD 0 Map Filters NONE Filters NONE Steam 1 RUN: fbfde186-1778-44f4-ad60-185c1bfd8956